bitfinex/quotes_ETHUSD_20220305
["timestamp","ask_amount","ask_price","bid_price","bid_amount"]
[1646500185726,0.00096,2671.0,2670.2,0.19223431]
[1646500185963,0.1872,2671.1,2670.2,0.19223431]
[1646500185964,0.18816,2671.1,2670.2,0.19223431]
[1646500186164,0.18816,2671.1,2670.6,2.02410511]
[1646500186367,0.1872,2671.1,2670.6,2.02410511]
[1646500186667,1.3211734,2671.2,2670.6,2.02410511]
[1646500186865,1.31784382,2671.2,2670.6,0.93646]
[1646500187165,1.13413998,2671.2,2670.6,0.93646]
[1646500187564,1.32133998,2671.2,2670.6,0.93646]
[1646500187765,1.32133998,2671.2,2670.7,1.08198254]
[1646500187964,1.31784382,2671.2,2670.7,1.08198254]
[1646500188367,1.32134001,2671.2,2670.6,0.93646]
[1646500189367,1.31784382,2671.2,2670.6,0.93646]
[1646500189566,1.31784382,2671.2,2670.6,1.92654547]
[1646500189567,1.32134001,2671.2,2670.6,1.92654547]
[1646500190023,0.19069619,2671.2,2670.6,1.92654547]
[1646500190420,0.1872,2671.2,2670.6,1.92654547]
[1646500190622,0.00096,2671.3,2670.6,1.92654547]
[1646500190820,0.00322942,2671.2,2670.6,2.30204547]
[1646500191020,0.00239856,2671.2,2670.7,0.19227706]
[1646500191519,0.00239856,2671.2,2671.1,0.96001608]
[1646500191724,0.00096,2671.8,2671.0,0.93633]
[1646500191725,0.18796,2671.8,2671.0,0.93633]
[1646500191921,0.18796,2671.8,2670.1,1.1383]
[1646500191922,0.3755,2671.4,2670.1,1.1383]
[1646500192119,11.0196,2671.5,2670.2,0.19257293]
[1646500192120,11.0196,2671.2,2670.2,0.19257293]
[1646500192321,15.84646603,2671.1,2670.2,0.19257293]
[1646500192519,1.32590603,2671.0,2670.2,0.19257293]
[1646500192721,1.32686603,2671.0,2670.2,0.19257293]
[1646500192919,1.14236083,2670.8,2670.2,0.19257293]
[1646500194067,0.00096,2671.0,2670.3,0.93655]
[1646500194269,0.00096,2671.0,2670.4,0.19257293]
[1646500194270,2.32880539,2671.0,2670.4,0.19257293]
[1646500194468,1.32880539,2670.9,2670.4,0.19257293]
[1646500194669,1.0,2671.1,2670.4,0.19257293]
[1646500194867,1.00452096,2671.3,2670.5,1.06523178]
[1646500194868,1.32878885,2671.0,2670.5,1.06523178]
[1646500195167,0.00356096,2671.3,2670.6,2.06530293]
[1646500195366,1.32870295,2671.3,2670.7,0.19257293]
[1646500195566,1.32870295,2671.2,2670.7,0.19257293]
[1646500195767,0.00152767,2671.3,2670.7,0.19257293]
[1646500196169,1.1070895,2671.2,2670.7,0.19257293]
[1646500196369,1.1070895,2671.2,2670.2,0.25]
[1646500196370,11.52,2671.0,2670.2,0.25]
[1646500196568,1.32872125,2670.9,2670.3,0.19297225]
[1646500196969,1.32872125,2670.9,2670.4,0.19297225]
[1646500197231,0.98071921,2670.6,2670.5,0.19297225]
[1646500197419,0.98071921,2670.6,2669.7,7.06742828]
[1646500197615,12.95571921,2670.6,2669.8,0.19356824]
[1646500197816,1.32968125,2670.5,2669.8,0.19356824]
[1646500198019,1.32872125,2670.5,2669.8,0.19356824]
[1646500198420,0.97527699,2670.1,2669.8,0.19356824]
[1646500198821,1.33227963,2670.0,2669.8,0.19356824]
[1646500199025,1.33227963,2670.0,2669.9,0.19356824]
[1646500199426,1.33227963,2670.0,2669.7,0.00356573]
[1646500200022,12.52,2670.2,2669.6,0.19356824]
[1646500200023,1.33227963,2669.9,2669.6,0.19356824]
[1646500200227,11.52,2669.8,2669.6,0.19356824]
[1646500200424,11.52,2669.8,2669.7,0.19713391]
[1646500200625,12.52,2669.8,2669.7,0.19713391]
[1646500201067,13.85872694,2669.8,2669.7,0.19713391]
[1646500201270,13.85872694,2669.8,2669.7,0.19356824]
[1646500201467,12.52,2669.8,2669.7,0.19356824]
[1646500203474,13.88943294,2669.8,2669.6,10.00344864]
[1646500203675,12.88943294,2669.7,2669.6,10.0]
[1646500203977,12.88943294,2669.7,2669.6,10.00338178]
[1646500204174,13.88943294,2669.7,2669.6,10.00338178]
[1646500204817,13.88943294,2669.7,2669.6,10.0]
[1646500205019,12.52,2669.7,2669.6,10.0]
[1646500205221,14.34244138,2669.7,2669.6,10.0]
[1646500206119,14.34244138,2669.7,2669.1,2.0]
[1646500206322,11.52,2669.2,2669.1,2.0]
[1646500206521,14.39376777,2669.2,2669.1,2.0]
[1646500206719,15.39376777,2669.2,2669.1,2.0]
[1646500206922,15.39376777,2669.2,2668.3,0.25]
[1646500206923,11.52,2669.0,2668.3,0.25]
[1646500207123,11.52,2668.8,2668.4,0.10440753]
[1646500207320,11.52,2668.6,2668.1,0.3743]
[1646500207521,11.975,2668.6,2668.1,0.3743]
[1646500207721,11.52,2668.4,2667.7,0.25]
[1646500207921,11.52,2668.4,2667.8,0.1045445]
[1646500208122,12.52,2668.4,2667.7,0.25]
[1646500208322,1.11490156,2668.0,2667.7,0.25]
[1646500208573,1.11490156,2668.0,2667.5,1.08734999]
[1646500208773,12.63490156,2668.0,2667.1,0.1874]
[1646500209072,12.63490156,2668.0,2667.2,0.1042439]
[1646500209272,13.63490156,2668.0,2667.3,0.1042439]
[1646500209472,13.63490156,2668.0,2667.4,0.1042439]
[1646500209674,13.63490156,2668.0,2667.0,0.1874]
[1646500209973,13.63490156,2668.0,2667.3,1.09210882]
[1646500210172,13.63490156,2668.0,2667.4,0.10424668]
[1646500210774,13.63490156,2668.0,2667.0,0.1874]
[1646500210974,13.63490156,2668.0,2667.1,0.10391202]
[1646500211175,13.63490156,2668.0,2667.0,0.1874]
[1646500211376,13.63490156,2668.0,2667.6,0.00356435]
[1646500211573,12.52,2668.0,2667.6,0.00356435]
[1646500212234,12.52,2668.0,2667.1,0.93765]
[1646500212424,12.52,2668.0,2667.7,0.00356133]
[1646500212823,13.42744736,2668.0,2667.7,0.00356133]
[1646500213022,12.52,2668.0,2667.7,0.00356133]
[1646500213424,12.52,2668.0,2667.5,1.08214566]
[1646500213625,12.52,2668.0,2667.7,0.00356129]
[1646500214028,11.52,2667.8,2667.7,0.00356129]
[1646500214229,10.91639789,2667.8,2667.7,0.00356129]
[1646500214628,10.91639789,2667.8,2667.6,0.02582484]
[1646500214832,1.0970022,2667.7,2667.6,0.0293862]
[1646500215029,11.975,2668.0,2667.6,0.0293862]
[1646500215030,0.1874,2668.0,2667.6,0.0293862]
[1646500215233,1.0,2668.3,2667.6,0.0293862]
[1646500215430,0.1874,2668.6,2667.6,0.0293862]
[1646500215830,11.52,2668.5,2667.6,0.02582484]
[1646500216064,3.5,2668.6,2667.8,0.00342902]
[1646500216065,11.52,2668.2,2667.8,0.00342902]
[1646500216266,1.14923592,2668.3,2667.8,0.00342902]
[1646500216866,12.66923592,2668.3,2667.8,0.00342902]
[1646500217068,12.66923592,2668.3,2667.6,0.02582484]
[1646500217266,2.14923592,2668.3,2667.9,0.00320812]
[1646500217667,1.0,2668.5,2667.9,0.00320812]
[1646500217866,11.52,2668.6,2667.9,0.00320812]
[1646500218070,11.52,2668.6,2667.7,1.15396786]
[1646500218271,3.5,2668.5,2667.7,1.15396786]
[1646500218473,11.52,2668.5,2668.1,0.00320801]
[1646500218671,1.91956768,2668.5,2668.1,0.00320801]
[1646500219071,0.91956768,2668.5,2668.1,0.00320801]
[1646500219271,0.1872,2668.7,2667.8,0.04296337]
[1646500219473,2.3425,2668.9,2667.8,0.04296337]
[1646500219474,2.5297,2668.9,2667.8,0.04296337]
[1646500219731,0.1872,2668.9,2668.2,0.0033404]
[1646500219922,2.8916,2669.1,2668.2,0.0033404]
[1646500220420,2.8916,2669.1,2668.9,1.05138699]
[1646500220628,0.1872,2669.4,2668.9,1.05138699]
[1646500220827,2.7258,2670.0,2668.9,1.05138699]
[1646500220828,0.1872,2669.5,2668.9,1.05138699]
[1646500221321,0.1872,2669.8,2668.9,1.05138699]
[1646500222022,0.1872,2669.8,2669.2,0.00356043]
[1646500222225,0.1872,2669.8,2669.4,1.21911358]
[1646500222623,11.52,2670.1,2669.4,1.21911358]
[1646500223325,1.04885875,2670.1,2669.5,0.0035629]
[1646500223771,11.52,2670.3,2669.5,0.0035629]
[1646500224171,11.52,2670.3,2669.4,1.21911358]
[1646500224371,0.1872,2670.4,2669.7,0.00356281]
[1646500224372,11.7072,2670.4,2669.7,0.00356281]
[1646500224773,13.5975369,2670.4,2669.9,0.91800302]
[1646500224973,12.7072,2670.4,2669.9,0.91800302]
[1646500226073,12.7072,2670.4,2669.7,0.00356295]
[1646500226275,12.52,2670.4,2669.7,0.00356295]
[1646500226474,15.02,2670.3,2668.7,4.16002]
[1646500226674,15.02,2670.3,2668.8,2.40915079]
[1646500226874,0.1872,2670.2,2669.7,0.00344532]
[1646500227320,0.87518435,2670.0,2669.7,0.00344532]
[1646500227724,0.87518435,2670.0,2669.4,1.09256169]
[1646500228123,0.87518435,2670.0,2669.7,0.00344521]
[1646500228926,0.87518435,2670.0,2669.4,1.09256169]
[1646500229326,0.87518435,2670.0,2669.7,0.00344521]
[1646500229927,12.39518435,2670.0,2669.7,0.00344521]
[1646500230128,12.39518435,2670.0,2668.8,1.78465079]
[1646500230328,0.87392822,2669.5,2669.0,0.96910146]
[1646500230963,12.52,2670.0,2669.0,0.96910146]
[1646500230964,1.0,2670.0,2669.0,0.96910146]
[1646500231166,1.0,2670.0,2669.1,0.93695]
[1646500231366,1.0,2670.2,2669.1,0.93695]
[1646500231566,3.5,2670.2,2669.4,0.00331812]
[1646500231970,16.02,2670.2,2669.4,0.00331812]
[1646500232369,1.21064727,2669.9,2669.4,0.00331812]
[1646500232570,1.21064727,2669.9,2669.1,0.93695]
[1646500232768,1.21064727,2669.9,2669.7,0.00331792]
[1646500233771,1.21064727,2669.9,2669.1,0.93695]
[1646500233972,1.21064727,2669.9,2669.7,0.00332652]
[1646500234172,0.00312828,2669.4,2669.1,0.93695]
[1646500235819,1.16377555,2669.9,2669.1,0.93695]
[1646500236217,16.02,2670.2,2669.5,0.92412709]
[1646500236418,1.46995527,2670.1,2669.5,0.913793]
[1646500236619,1.46995527,2670.0,2669.1,0.93695]
[1646500236820,0.1872,2670.2,2669.1,0.93695]
[1646500237022,1.46974135,2670.1,2669.1,0.93695]
[1646500237721,1.2022893,2670.0,2669.5,1.08630782]
[1646500238584,1.2022893,2670.0,2669.5,1.08427006]
[1646500238782,1.2022893,2670.0,2669.6,0.00356285]
[1646500239782,1.2022893,2670.0,2669.1,1.31245]
[1646500239985,1.2022893,2670.0,2668.9,4.656]
[1646500240183,12.99214118,2669.9,2669.6,0.00356288]
[1646500240384,1.47214118,2669.8,2669.6,0.00356288]
[1646500240584,12.99214118,2669.8,2669.6,0.00356288]
[1646500240784,12.52,2669.8,2669.6,0.00356288]
[1646500240985,12.52,2669.8,2668.8,1.41831656]
[1646500241188,1.0,2669.8,2669.6,0.00356282]
[1646500241584,11.52,2670.1,2669.6,0.00356282]
[1646500241784,12.52,2669.9,2669.6,0.00356282]
[1646500241984,1.67111694,2670.4,2669.6,0.00356282]
[1646500241985,12.99272505,2669.8,2669.6,0.00356282]
[1646500242227,1.12328487,2669.5,2668.8,1.41831656]
[1646500242418,1.0,2669.8,2668.8,1.41831656]
[1646500242615,1.47436977,2669.7,2668.8,1.41831656]
[1646500242815,6.525,2670.2,2668.8,1.41831656]
[1646500242816,7.525,2670.2,2668.8,1.41831656]
[1646500243115,1.47436897,2670.1,2669.0,0.93694]
[1646500243724,1.47436897,2670.1,2669.5,1.13436398]
[1646500243725,0.9632274,2670.0,2669.5,1.13436398]
[1646500243921,1.47436897,2669.9,2669.5,1.13436398]
[1646500244924,1.47436897,2669.9,2669.6,0.00345593]
[1646500245725,1.47436897,2669.9,2669.1,0.07678485]
[1646500245965,1.47436897,2669.9,2669.6,0.00332025]
[1646500246566,0.1872,2670.4,2669.6,0.00332025]
[1646500246769,0.0033191,2670.5,2669.6,0.00332025]
[1646500246770,1.47498394,2670.3,2669.6,0.00332025]
[1646500246966,1.47498394,2670.2,2669.5,1.94328545]
[1646500247167,0.1872,2670.6,2669.5,1.94328545]
[1646500247366,1.47809864,2670.5,2670.1,1.16924682]
[1646500247969,0.00331924,2670.5,2670.1,1.16924682]
[1646500248171,1.47467611,2670.7,2670.1,1.16924682]
[1646500248374,0.00096,2670.8,2670.1,1.16924682]
[1646500248573,0.00331941,2670.5,2670.1,1.16924682]
[1646500248775,0.00331941,2670.5,2670.1,1.87297]
[1646500248977,0.00331941,2670.5,2669.7,1.2256]
[1646500249373,1.47466969,2670.7,2669.7,1.2256]
[1646500249734,0.00332558,2670.5,2669.7,1.2256]
[1646500249924,1.10583067,2670.1,2669.7,1.2256]
[1646500250323,1.10583067,2670.1,2669.6,1.00332674]
[1646500250525,1.10583067,2670.1,2669.6,1.87328]
[1646500250727,1.10583067,2670.1,2669.3,1.93686]
[1646500250927,1.10583067,2670.1,2669.6,0.00332662]
[1646500251826,1.10583067,2670.1,2669.4,0.07677409]
[1646500252026,1.10583067,2670.1,2669.6,0.00332659]
[1646500252324,1.05583067,2670.1,2669.6,0.00332659]
[1646500253125,1.05583067,2670.1,2669.4,0.07677409]
[1646500253325,1.05583067,2670.1,2669.6,0.00332615]
[1646500253577,0.003325,2670.5,2669.7,0.93672]
[1646500254381,0.00332514,2670.5,2669.7,0.93672]
[1646500254679,0.00332514,2670.5,2670.1,0.96514153]
[1646500255281,0.00332514,2670.5,2670.1,1.90170153]
[1646500255580,0.00096,2670.8,2670.1,1.90170153]
[1646500255781,7.5572,2671.0,2670.1,1.90170153]
[1646500255782,0.00332526,2670.5,2670.1,1.90170153]
[1646500256581,0.00096,2670.8,2670.1,1.90170153]
[1646500256783,0.89669991,2670.7,2670.1,1.90170153]
[1646500256982,0.00332528,2670.5,2670.1,1.90170153]
[1646500257240,0.00332528,2670.5,2670.1,0.96514153]
[1646500257430,0.00332528,2670.5,2669.8,1.1694]
[1646500257831,1.47445505,2670.6,2669.8,1.1694]
[1646500258232,0.0033252,2670.5,2669.7,1.87324]
[1646500258433,1.07508964,2670.0,2669.7,1.87324]
[1646500258635,0.0033252,2670.5,2670.2,0.10750896]
[1646500259035,0.00096,2670.8,2670.2,0.10750896]
[1646500259235,0.1872,2670.9,2670.2,0.10750896]
[1646500259236,1.47647544,2670.9,2670.2,0.10750896]
[1646500259440,0.00332531,2670.5,2670.3,0.07675465]
[1646500259638,0.00332531,2670.5,2670.4,1.1207751]
[1646500259837,0.00332531,2670.5,2670.4,0.07675465]
[1646500260035,0.00332531,2670.5,2670.2,1.98039896]
[1646500260238,1.47642076,2670.9,2670.2,0.10750896]
[1646500260537,0.0015385,2670.6,2670.2,0.10750896]
[1646500260969,1.23245452,2670.3,2670.2,0.10750896]
[1646500261567,4.73245452,2670.3,2670.2,0.10750896]
[1646500261768,3.71200453,2670.3,2670.2,0.10750896]
[1646500262169,4.63600453,2670.3,2670.2,0.10750896]
[1646500262868,3.63600453,2670.3,2670.2,0.10750896]
[1646500263168,0.00153844,2670.5,2670.2,0.10750896]
[1646500263571,0.00153844,2670.5,2670.3,0.07676141]
[1646500263771,1.47966121,2670.9,2670.3,0.07676141]
[1646500263972,6.5523,2671.1,2670.3,0.07676141]
[1646500263973,1.47966121,2670.8,2670.3,0.07676141]
[1646500264173,1.01109324,2670.5,2670.2,0.10750896]
[1646500264574,1.47971155,2670.4,2670.2,0.10750896]
[1646500267126,0.00357506,2670.5,2670.3,0.07676106]
[1646500267625,1.48111608,2670.7,2670.3,0.07676106]
[1646500267823,0.00357576,2670.5,2670.3,0.07676106]
[1646500268024,0.00357576,2670.5,2670.2,0.10750896]
[1646500268025,1.48469184,2670.5,2670.2,0.10750896]
[1646500268225,0.00357576,2670.5,2670.2,0.10750896]
[1646500268681,1.48031097,2670.8,2670.2,0.10750896]
[1646500268883,1.15382237,2670.4,2670.2,0.10750896]
[1646500269281,1.15382237,2670.4,2670.3,0.07676045]
[1646500270684,1.15382237,2670.4,2670.2,0.10750896]
[1646500270685,2.63387589,2670.4,2670.2,0.10750896]
[1646500270884,1.48005352,2670.3,2670.2,0.10750896]
[1646500272825,0.00352487,2670.5,2670.2,0.18427139]
[1646500273021,0.00352487,2670.5,2670.2,0.10750896]
[1646500273422,1.48001414,2670.8,2670.3,0.07675765]
[1646500273625,2.43789978,2670.7,2670.5,0.00139904]
[1646500273827,1.48001414,2670.6,2670.5,0.00139904]
[1646500274329,1.48001414,2670.9,2670.5,0.00139904]
[1646500274625,1.48001414,2670.8,2670.5,0.00139904]
[1646500274930,1.48341997,2670.7,2670.5,0.00139904]
[1646500275124,0.00340583,2670.7,2670.5,0.00139904]
[1646500275971,1.47996054,2670.9,2670.5,0.00139904]
[1646500276270,0.00345665,2670.7,2670.5,0.00139904]
[1646500276671,1.19805164,2670.6,2670.5,0.00139904]
[1646500277070,2.67764289,2670.6,2670.5,0.00139904]
[1646500278471,2.67621287,2670.6,2670.5,0.00139904]
[1646500278873,1.19662162,2670.6,2670.5,0.00139904]
[1646500279274,1.07695946,2670.6,2670.5,0.00139904]
[1646500281125,4.57695946,2670.6,2670.5,0.00139904]
[1646500281329,7.05946006,2670.6,2670.5,0.00139904]
[1646500281525,3.55946006,2670.6,2670.5,0.00139904]
[1646500283330,2.55946006,2670.6,2670.5,0.00139904]
[1646500283979,2.55946006,2670.6,2670.5,0.041018]
[1646500284582,1.07695946,2670.6,2670.5,0.11777391]
[1646500284782,0.00333907,2670.7,2670.5,0.11777391]
[1646500284982,0.00333907,2670.7,2670.5,0.041018]
[1646500285387,1.48314213,2671.0,2670.5,0.041018]
[1646500285584,1.48314213,2670.9,2670.6,0.07675087]
[1646500285884,0.00333846,2670.7,2670.6,0.07675087]
[1646500286488,0.00333846,2670.7,2670.5,0.041018]
[1646500286685,1.48591339,2670.8,2670.5,0.041018]
[1646500286885,1.48925182,2670.8,2670.5,0.041018]
[1646500287519,2.0056243,2670.8,2670.5,0.041018]
[1646500287722,1.48591339,2670.7,2670.5,0.041018]
[1646500288923,1.48591339,2670.7,2670.5,0.00139904]
[1646500289125,1.48591339,2670.7,2670.5,0.07815848]
[1646500289426,1.48925189,2670.7,2670.5,29.60080163]
[1646500289723,1.48925189,2670.7,2670.5,29.52404219]
[1646500289923,1.48925189,2670.7,2670.6,0.07675598]
[1646500290123,1.48925189,2670.7,2670.5,29.52404219]
[1646500290327,1.48591339,2670.7,2670.5,29.52404219]
[1646500290530,1.48591339,2670.7,2670.6,0.07675442]
[1646500291372,0.00333846,2670.8,2670.6,3.57675442]
[1646500291671,0.68824196,2671.4,2670.7,0.07675442]
[1646500291672,1.48775594,2671.1,2670.7,0.07675442]
[1646500291971,0.00333846,2670.8,2670.7,0.07675442]
[1646500292371,1.0408805,2671.1,2670.7,0.07675442]
[1646500293779,0.00096,2671.4,2670.7,0.07675442]
[1646500294280,0.00151743,2671.0,2670.7,0.07675442]
[1646500294480,0.00151743,2671.0,2670.7,0.0754513]
[1646500295222,0.97874801,2671.1,2670.7,0.0754513]
[1646500295422,0.00151743,2671.0,2670.7,0.0754513]
[1646500296522,0.00357922,2671.0,2670.7,0.0754513]
[1646500297525,1.07520499,2671.4,2670.7,0.0754513]
[1646500297925,0.00358924,2671.0,2670.7,0.0754513]
[1646500298778,1.07520499,2671.4,2670.7,0.0754513]
[1646500298981,0.00358924,2671.0,2670.9,0.03936356]
[1646500299879,0.97520499,2671.4,2670.9,0.03936356]
[1646500300079,0.03723065,2670.8,2670.5,29.52404219]
[1646500301084,0.95467916,2670.7,2670.5,29.52404219]
[1646500304326,0.06312465,2670.8,2670.5,29.52404219]
[1646500305529,0.06312465,2670.8,2670.6,0.89283156]
[1646500305973,0.06312465,2670.8,2670.5,29.52404219]
[1646500306171,0.01312465,2670.8,2670.5,29.52404219]
[1646500308679,0.94181173,2671.1,2670.6,2.5]
[1646500309078,0.94181173,2671.1,2670.5,29.52404219]
[1646500309478,0.02631793,2670.8,2670.5,29.52404219]
[1646500310139,0.02434148,2670.8,2670.5,29.52404219]
[1646500314181,0.00358905,2671.0,2670.7,0.02211105]
[1646500314379,0.94637368,2671.2,2670.7,0.02211105]
[1646500314579,0.00358905,2671.0,2670.8,0.07674702]
[1646500314780,0.00358905,2671.0,2670.8,29.59939017]
[1646500314980,0.00358905,2671.0,2670.9,0.07674702]
[1646500315183,1.48579647,2671.0,2670.9,0.07674636]
[1646500315379,0.00358905,2671.0,2670.9,0.07674636]
[1646500315580,1.48220742,2671.1,2670.9,0.07674636]
[1646500315780,1.48579658,2671.1,2670.9,29.59938951]
[1646500315981,1.48579658,2671.1,2670.9,29.52264315]
[1646500316582,1.48579658,2671.1,2671.0,0.07674535]
[1646500316782,1.48220742,2671.1,2671.0,29.5993885]
[1646500316982,1.48572925,2671.1,2671.0,29.5993885]
[1646500318028,1.48220742,2671.1,2671.0,29.5993885]
[1646500318836,1.48220742,2671.1,2671.0,29.52264315]
[1646500319235,2.68636996,2671.2,2671.0,29.52264315]
[1646500319435,1.48220742,2671.1,2671.0,29.52264315]
[1646500319634,1.48220742,2671.1,2671.0,29.56134399]
[1646500320234,1.48220742,2671.1,2671.0,27.92401972]
[1646500324282,1.48220742,2671.1,2671.0,27.90465481]
[1646500324481,1.48220742,2671.1,2671.0,27.70465481]
[1646500325725,1.48220742,2671.1,2671.0,27.78437284]
[1646500326025,1.48220742,2671.1,2671.0,25.9663845]
[1646500329581,1.48220742,2671.1,2671.0,25.99342192]
[1646500330184,1.48220742,2671.1,2671.0,25.91370389]
[1646500330383,1.48220742,2671.1,2671.0,25.9904513]
[1646500330782,1.48220742,2671.1,2671.0,25.91370389]
[1646500330984,4.98220742,2671.1,2671.0,25.91370389]
[1646500331185,5.43720742,2671.1,2671.0,25.91370389]
[1646500331385,6.43720742,2671.1,2671.0,25.91370389]
[1646500332236,2.93720742,2671.1,2671.0,25.91370389]
[1646500332426,2.93720742,2671.1,2671.0,24.4805334]
[1646500332627,1.93720742,2671.1,2671.0,24.4805334]
[1646500332825,2.93720742,2671.1,2671.0,24.4805334]
[1646500333025,5.43720742,2671.1,2671.0,24.4805334]
[1646500333226,6.43720742,2671.1,2671.0,24.4805334]
[1646500333530,2.93720742,2671.1,2671.0,24.4805334]
[1646500333729,3.65293719,2671.1,2671.0,24.4805334]
[1646500333930,4.65293719,2671.1,2671.0,24.4805334]
[1646500334132,3.73190311,2671.1,2671.0,24.4805334]
[1646500334336,3.75882813,2671.1,2671.0,24.4805334]
[1646500334532,15.27882813,2671.1,2671.0,24.4805334]
[1646500334732,19.69986221,2671.1,2671.0,24.4805334]
[1646500334935,19.00932813,2671.1,2671.0,24.4805334]
[1646500335334,19.92743288,2671.1,2671.0,24.4805334]
[1646500335536,19.92743288,2671.1,2671.0,3.742e-05]
[1646500335537,19.00932813,2671.1,2671.0,3.742e-05]
[1646500335736,23.7380281,2671.1,2671.0,3.742e-05]
[1646500335977,32.17739183,2671.1,2671.0,3.742e-05]
[1646500336179,0.00076258,2670.9,2670.5,0.00139904]
[1646500336479,12.43824008,2670.6,2670.5,0.00139904]
[1646500336678,14.43937009,2670.6,2670.5,0.00139904]
[1646500336882,15.43937009,2670.6,2670.5,0.00139904]
[1646500338783,4.46661794,2670.6,2670.5,0.00139904]
[1646500338982,5.15432768,2670.6,2670.5,0.00139904]
[1646500339582,20.17432768,2670.6,2670.5,0.00139904]
[1646500339832,9.77955768,2670.6,2670.5,0.00139904]
[1646500340030,21.24955768,2670.6,2670.5,0.00139904]
[1646500340431,21.43675768,2670.6,2670.5,0.00139904]
[1646500340631,9.22904794,2670.6,2670.5,0.00139904]
[1646500340831,21.43675768,2670.6,2670.5,0.00139904]
[1646500341030,17.93675768,2670.6,2670.5,0.00139904]
[1646500342231,11.52,2670.4,2670.3,0.00334173]
[1646500342434,11.52,2670.4,2670.0,0.06417789]
[1646500342435,11.52,2670.2,2670.0,0.06417789]
[1646500342634,11.52,2670.0,2669.2,0.25]
[1646500342832,11.52,2669.8,2668.8,1.16015079]
[1646500343033,1.0,2670.0,2668.8,1.16015079]
[1646500343034,11.52,2669.6,2668.8,1.16015079]
[1646500343233,12.975,2669.6,2668.8,1.16015079]
[1646500343683,12.67857485,2669.5,2668.8,1.1575]
[1646500343879,1.455,2669.6,2668.8,1.1575]
[1646500344081,0.455,2669.6,2668.8,1.1575]
[1646500344281,0.455,2669.6,2668.6,0.95622076]
[1646500345081,11.52,2669.5,2668.6,0.95622076]
[1646500345280,12.52,2669.5,2668.6,0.95622076]
[1646500346381,4.5,2669.5,2668.6,0.95622076]
[1646500346581,1.0,2669.5,2668.6,0.95622076]
[1646500346881,1.0,2669.9,2668.6,0.95622076]
[1646500346882,2.7711,2670.3,2668.7,5.3755]
[1646500347081,4.71607918,2670.5,2668.9,0.37908259]
[1646500347082,0.17470768,2670.5,2668.9,0.37908259]
[1646500347335,0.17470768,2670.5,2669.1,0.3755]
[1646500347629,0.38428023,2670.7,2670.5,1.21479221]
[1646500347630,1.3615104,2670.7,2670.5,1.21479221]
[1646500347834,1.3615104,2670.7,2669.4,0.3755]
[1646500348030,1.35793017,2670.7,2669.8,2.24857]
[1646500348430,1.36151121,2670.7,2670.2,0.0035818]
[1646500348635,1.36151121,2670.7,2670.2,0.3790818]
[1646500348837,0.38428104,2670.7,2670.4,0.3755]
[1646500349239,0.3807,2670.7,2670.4,0.3755]
[1646500349440,0.3807,2670.7,2670.5,1.03283757]
[1646500349637,0.38428108,2670.7,2670.5,1.03283757]
[1646500350436,0.3807,2670.7,2670.5,1.03283757]
[1646500350636,0.38428104,2670.7,2670.5,1.03283757]
[1646500351479,0.38428104,2670.7,2670.5,1.40833757]
[1646500351678,0.3807,2670.7,2670.5,1.03283757]
[1646500351879,0.38416018,2670.7,2670.5,1.03283757]
[1646500352280,0.38416018,2670.7,2670.2,0.00346092]
[1646500352879,0.3807,2670.7,2670.0,0.00345664]
[1646500353080,0.3807,2670.7,2670.2,0.00346083]
[1646500353280,0.38416016,2670.7,2670.4,1.08704458]
[1646500354082,0.3807,2670.7,2670.4,1.08704458]
[1646500354283,0.38416022,2670.7,2670.4,1.08704458]
[1646500355323,0.3807,2670.7,2670.4,1.08704458]
[1646500355524,0.0033436,2670.7,2670.4,1.08704458]
[1646500356424,0.00076258,2670.9,2670.4,1.08704458]
[1646500356626,0.0033436,2670.7,2670.4,1.08704458]
[1646500357629,0.00076258,2670.9,2670.4,1.08704458]
[1646500357926,0.0033436,2670.7,2670.4,1.08704458]
[1646500358783,0.00076258,2670.9,2670.4,1.08704458]
[1646500358984,0.00076258,2670.9,2670.4,1.46254458]
[1646500359185,0.00335137,2670.7,2670.4,1.46254458]
[1646500359785,0.00335137,2670.7,2670.4,1.08704458]
[1646500359990,0.00076258,2670.9,2670.4,1.08704458]
[1646500360385,0.00335137,2670.7,2670.4,1.08704458]
[1646500361191,1.4474919,2670.8,2670.4,1.46254458]
[1646500361388,0.00076258,2670.9,2670.4,1.46254458]
[1646500361587,0.00335137,2670.7,2670.4,1.08704458]
[1646500361789,0.00335137,2670.7,2670.4,1.46254458]
[1646500362235,0.00255137,2670.7,2670.4,1.46254458]
[1646500362425,0.00076258,2670.9,2670.5,0.07674778]
[1646500362625,0.00076258,2670.9,2670.6,0.3755]
[1646500362828,0.00335072,2670.7,2670.6,0.3755]
[1646500363029,0.00335072,2670.7,2670.6,0.45224556]
[1646500363630,0.00076258,2670.9,2670.6,0.07674556]
[1646500364633,0.00076258,2670.9,2670.8,0.3755]
[1646500364838,0.00076258,2670.9,2670.8,3.95224556]
[1646500365233,0.00228751,2670.9,2670.8,3.95224556]
[1646500365436,0.00228751,2670.9,2670.8,0.45224556]
[1646500366078,0.00076258,2670.9,2670.8,0.45224556]
[1646500366279,0.00076258,2670.9,2670.8,3.95224556]
[1646500366680,0.00076258,2670.9,2670.8,1.45224556]
[1646500367085,0.00076258,2670.9,2670.8,0.45224556]
[1646500367584,0.4027937,2671.7,2670.9,2.5]
[1646500367785,1.45012489,2671.6,2670.9,2.5]
[1646500367987,1.45012489,2671.6,2670.6,2.24807]
[1646500368185,1.45012489,2671.6,2670.7,0.07673939]
[1646500368787,2.39704907,2671.6,2670.7,0.07673939]
[1646500368988,1.45012489,2671.5,2670.7,0.07673939]
[1646500369832,1.45164444,2671.5,2670.7,0.07673939]
[1646500370833,1.45012489,2671.5,2670.7,0.07673939]
[1646500371033,1.45371903,2671.5,2670.7,0.07673939]
[1646500371633,0.00455414,2671.5,2670.7,0.07673939]
[1646500371834,0.00359414,2671.5,2670.7,0.07673939]
[1646500372034,0.00096,2671.6,2670.7,0.07673939]
[1646500372432,0.00359414,2671.5,2670.7,0.07673939]
[1646500373334,0.00096,2671.6,2670.7,0.07673939]
[1646500373584,0.00152117,2671.5,2670.7,0.07673939]
[1646500374380,0.02527927,2671.5,2670.7,0.07673939]
[1646500374780,0.02669351,2671.5,2670.9,1.05010469]
[1646500374984,0.02669351,2671.5,2671.0,0.07673939]
[1646500375180,0.02669351,2671.5,2670.9,1.05010469]
[1646500375380,0.02669351,2671.5,2670.7,3.5]
[1646500375581,0.02527927,2671.5,2670.8,0.07673848]
[1646500375783,0.02527927,2671.5,2670.7,0.07673848]
[1646500375980,0.0287693,2671.5,2670.8,0.07673927]
[1646500376180,0.0287693,2671.5,2670.6,1.8760612]